[Event "DVM U14 2019"]
[Site "Magedburg"]
[Date "2019.12.29"]
[Round "6"]
[White "Boissel, Kasimir"]
[Black "Joppich, Til"]
[Result "1/2-1/2"]
[ECO "A48"]
[WhiteElo "1638"]
[BlackElo "1916"]
[Annotator "NA"]
[PlyCount "61"]
[EventDate "2019.12.27"]
[EventType "team-tourn"]
[EventRounds "7"]
[EventCountry "GER"]
[SourceTitle "playchess.com"]
[Source "ChessBase"]
[SourceQuality "1"]
[WhiteTeam "SV Königsjäger Süd-West"]
[BlackTeam "Schachzwerge Magdeburg"]
[BlackTeamCountry "GER"]
[TimeControl "40/5400+30:1800+30"]

1. d4 {[%emt 0:00:00]} Nf6 {[%emt 0:00:00]} 2. Nf3 {[%emt 0:00:00]} g6 {[%emt 0:00:00]} 3. Bf4 {[%emt 0:00:06]} Bg7 {[%emt 0:00:01]} 4. e3 {[%emt 0:00:17]} O-O {[%emt 0:00:16]} 5. Nbd2 {[%emt 0:00:07]} d6 {[%emt 0:00:33]} 6. Bd3 {[%emt 0:00:32]} Nfd7 {[%emt 0:00:37]} 7. Nc4 {[%emt 0:05:20]} Nc6 {[%emt 0:09:03]} 8. c3 {[%emt 0:01:52]} e5 {[%emt 0:01:53]} 9. Bg3 {[%emt 0:01:57]} f5 {[%emt 0:14:44]} 10. Be2 {[%emt 0:18:43]} e4 {[%emt 0:07:47]} 11. Nfd2 {[%emt 0:00:49]} Re8 {[%emt 0:21:23]} 12. Qb3 {[%emt 0:02:25]} d5 {[%emt 0:11:39]} 13. Na3 {[%emt 0:00:58]} Nf6 {[%emt 0:01:22]} 14. c4 {[%emt 0:01:46]} Na5 {[%emt 0:04:09]} 15. Qb4 {[%emt 0:00:14]} c6 {[%emt 0:00:37]} 16. Nb3 {[%emt 0:02:46]} Nxb3 {[%emt 0:00:17]} 17. Qxb3 {[%emt 0:00:10]} Nh5 {[%emt 0:03:17]} 18. Bxh5 {[%emt 0:04:16]} gxh5 {[%emt 0:00:05]} 19. cxd5 {[%emt 0:01:08]} cxd5 {[%emt 0:00:21]} 20. Nb5 {[%emt 0:01:09]} Qa5+ {[%emt 0:00:10]} 21. Kf1 {[%emt 0:02:27]} Bd7 {[%emt 0:06:05]} 22. Nc7 {[%emt 0:01:19]} Rac8 {[%emt 0:02:30]} 23. Nxe8 {[%emt 0:01:55]} Bxe8 {[%emt 0:02:27]} 24. h3 {[%emt 0:01:07]} Qa6+ {[%emt 0:03:46]} 25. Kg1 {[%emt 0:00:37]} Rc4 {[%emt 0:00:07]} 26. Kh2 {[%emt 0:00:37]} Ba4 {[%emt 0:00:18]} 27. Qa3 {[%emt 0:01:44]} Bf8 {[%emt 0:00:11]} 28. b4 {[%emt 0:00:21]} Bxb4 {[%emt 0:00:08]} 29. Qb2 {[%emt 0:00:26]} Bc3 {[%emt 0:00:31]} 30. Qa3 {[%emt 0:00:46]} Bxa1 {[%emt 0:01:35]} 31. Rxa1 {[%emt 0:02:08] normal} 1/2-1/2

[Event "DVM U14 2019"]
[Site "Magedburg"]
[Date "2019.12.29"]
[Round "6"]
[White "Toth, Marc"]
[Black "Garner, Isaac"]
[Result "1/2-1/2"]
[ECO "B47"]
[WhiteElo "1564"]
[BlackElo "2040"]
[Annotator "NA"]
[PlyCount "124"]
[EventDate "2019.12.27"]
[EventType "team-tourn"]
[EventRounds "7"]
[EventCountry "GER"]
[SourceTitle "playchess.com"]
[Source "ChessBase"]
[SourceQuality "1"]
[WhiteTeam "SC Untergrombach"]
[BlackTeam "Hamburger SK"]
[BlackTeamCountry "GER"]
[TimeControl "40/5400+30:1800+30"]

1. e4 {[%emt 0:00:00]} c5 {[%emt 0:00:00]} 2. Nf3 {[%emt 0:00:00]} e6 {[%emt 0:00:00]} 3. d4 {[%emt 0:00:00]} cxd4 {[%emt 0:00:00]} 4. Nxd4 {[%emt 0:00:00]} Nc6 {[%emt 0:00:11]} 5. Nc3 {[%emt 0:00:06]} Qc7 {[%emt 0:00:12]} 6. Be2 {[%emt 0:01:16]} Nf6 {[%emt 0:00:13]} 7. O-O {[%emt 0:00:35]} Be7 {[%emt 0:00:13]} 8. Be3 {[%emt 0:00:37]} O-O {[%emt 0:00:17]} 9. f4 {[%emt 0:00:46]} d6 {[%emt 0:00:08]} 10. Bf3 {[%emt 0:02:20]} Bd7 {[%emt 0:13:22]} 11. Qe2 {[%emt 0:04:46]} Rac8 {[%emt 0:11:03]} 12. Qf2 {[%emt 0:05:59]} a6 {[%emt 0:01:57]} 13. Qg3 {[%emt 0:01:22]} b5 {[%emt 0:07:37]} 14. a3 {[%emt 0:06:37]} Kh8 {[%emt 0:00:49]} 15. Rad1 {[%emt 0:02:58]} Na5 {[%emt 0:08:01]} 16. Be2 {[%emt 0:12:44]} Nc4 {[%emt 0:05:57]} 17. Bxc4 {[%emt 0:02:46]} bxc4 {[%emt 0:00:05]} 18. Kh1 {[%emt 0:05:17]} Rb8 {[%emt 0:02:27]} 19. Bc1 {[%emt 0:05:09]} Bc8 {[%emt 0:02:13]} 20. Rfe1 {[%emt 0:02:57]} Bb7 {[%emt 0:02:35]} 21. Nf3 {[%emt 0:02:44]} Nd7 {[%emt 0:04:26]} 22. h3 {[%emt 0:13:23]} Nc5 {[%emt 0:02:13]} 23. e5 {[%emt 0:06:01]} Rbd8 {[%emt 0:04:43]} 24. exd6 {[%emt 0:03:38]} Bxd6 {[%emt 0:00:49]} 25. Be3 {[%emt 0:04:12]} f6 {[%emt 0:06:09]} 26. Bxc5 {[%emt 0:03:00]} Bxc5 27. Rxd8 {[%emt 0:00:54]} Rxd8 {[%emt 0:00:49]} 28. Rxe6 {[%emt 0:01:24]} Bd6 {[%emt 0:01:07]} 29. Qf2 {[%emt 0:03:36]} h6 {[%emt 0:08:31]} 30. Nh4 {[%emt 0:01:36]} Qf7 {[%emt 0:01:37]} 31. f5 {[%emt 0:00:22]} Bc8 {[%emt 0:00:22]} 32. Re4 {[%emt 0:01:44]} Kh7 {[%emt 0:05:17]} 33. Ng6 {[%emt 0:01:52]} Re8 {[%emt 0:02:57]} 34. Rxe8 {[%emt 0:04:03]} Qxe8 {[%emt 0:00:07]} 35. Nh4 {[%emt 0:01:10]} Qe5 {[%emt 0:00:32]} 36. Nf3 {[%emt 0:00:40]} Qxf5 {[%emt 0:00:12]} 37. Qd4 {[%emt 0:00:50]} Qc5 {[%emt 0:02:30]} 38. Qe4+ {[%emt 0:00:22]} Bf5 {[%emt 0:00:19]} 39. Qe2 {[%emt 0:00:45]} Bf4 {[%emt 0:01:57]} 40. Nh4 {[%emt 0:00:54]} Bc7 {[%emt 0:01:12]} 41. Nxf5 {[%emt 0:00:58]} Qxf5 {[%emt 0:00:24]} 42. Qxc4 {[%emt 0:04:47]} Be5 {[%emt 0:00:06]} 43. Qd3 {[%emt 0:05:25]} Qxd3 {[%emt 0:00:07]} 44. cxd3 {[%emt 0:00:02]} Kg6 {[%emt 0:00:09]} 45. Kg1 {[%emt 0:01:40]} Kf5 {[%emt 0:01:32]} 46. Kf2 {[%emt 0:00:35]} Bd4+ {[%emt 0:00:32]} 47. Kf3 {[%emt 0:00:46]} h5 {[%emt 0:00:48]} 48. g4+ {[%emt 0:02:20]} hxg4+ {[%emt 0:00:22]} 49. hxg4+ {[%emt 0:00:02]} Ke5 {[%emt 0:00:14]} 50. Kg3 {[%emt 0:01:18]} g5 {[%emt 0:00:32]} 51. Kf3 {[%emt 0:01:37]} f5 {[%emt 0:01:10]} 52. gxf5 {[%emt 0:01:46]} Kxf5 {[%emt 0:00:06]} 53. Nd1 {[%emt 0:02:32]} g4+ {[%emt 0:06:07]} 54. Kg3 {[%emt 0:00:58]} Be5+ {[%emt 0:00:39]} 55. Kg2 {[%emt 0:00:15]} Kf4 {[%emt 0:01:11]} 56. b3 {[%emt 0:03:56]} g3 {[%emt 0:02:49]} 57. b4 {[%emt 0:01:00]} Bd4 {[%emt 0:00:24]} 58. a4 {[%emt 0:02:13]} Kg4 {[%emt 0:01:05]} 59. a5 {[%emt 0:00:59]} Kf4 {[%emt 0:01:25]} 60. b5 {[%emt 0:00:38]} axb5 {[%emt 0:00:04]} 61. a6 {[%emt 0:00:23]} b4 {[%emt 0:00:56]} 62. Nb2 {[%emt 0:01:01]} Ke5 {normal} 1/2-1/2

[Event "DVM U14 2019"]
[Site "Magedburg"]
[Date "2019.12.29"]
[Round "6"]
[White "Kogan, Gabriel"]
[Black "Frank, Marek"]
[Result "1/2-1/2"]
[ECO "B22"]
[WhiteElo "1527"]
[BlackElo "1430"]
[Annotator "NA"]
[PlyCount "72"]
[EventDate "2019.12.27"]
[EventType "team-tourn"]
[EventRounds "7"]
[EventCountry "GER"]
[SourceTitle "playchess.com"]
[Source "ChessBase"]
[SourceQuality "1"]
[WhiteTeam "SG Porz"]
[BlackTeam "ESV Gera"]
[WhiteTeamCountry "GER"]
[BlackTeamCountry "GER"]
[TimeControl "40/5400+30:1800+30"]

1. e4 {[%emt 0:00:00]} c5 {[%emt 0:00:00]} 2. c3 {[%emt 0:00:00]} Nf6 {[%emt 0:00:15]} 3. e5 {[%emt 0:00:15]} Nd5 {[%emt 0:00:12]} 4. d4 {[%emt 0:00:09]} cxd4 {[%emt 0:00:25]} 5. Nf3 {[%emt 0:00:07]} e6 {[%emt 0:01:13]} 6. cxd4 {[%emt 0:00:54]} Be7 {[%emt 0:01:53]} 7. Bc4 {[%emt 0:01:02]} Nb6 {[%emt 0:00:25]} 8. Bb3 {[%emt 0:00:46]} Nc6 {[%emt 0:03:10]} 9. O-O {[%emt 0:00:25]} O-O {[%emt 0:04:28]} 10. Nc3 {[%emt 0:02:47]} d6 {[%emt 0:08:22]} 11. Bf4 {[%emt 0:09:27]} dxe5 {[%emt 0:13:46]} 12. dxe5 {[%emt 0:03:43]} Nd7 {[%emt 0:08:24]} 13. Rc1 {[%emt 0:04:50]} Qa5 {[%emt 0:03:32]} 14. Qe2 {[%emt 0:06:17]} Nc5 {[%emt 0:10:10]} 15. Bc2 {[%emt 0:03:18]} b6 {[%emt 0:07:26]} 16. Rfd1 {[%emt 0:09:20]} Nb4 {[%emt 0:11:50]} 17. Bb1 {[%emt 0:03:50]} Qa6 {[%emt 0:05:04]} 18. Qe3 {[%emt 0:04:42]} Bb7 {[%emt 0:02:57]} 19. a3 {[%emt 0:01:29]} Nd5 {[%emt 0:00:35]} 20. Nxd5 {[%emt 0:00:33]} Bxd5 {[%emt 0:00:06]} 21. Nd4 {[%emt 0:01:44]} Qb7 {[%emt 0:04:14]} 22. b4 {[%emt 0:03:13]} Nd7 {[%emt 0:02:31]} 23. Qh3 {[%emt 0:01:04]} g6 {[%emt 0:01:26]} 24. Rc3 {[%emt 0:03:07]} Rfc8 {[%emt 0:02:14]} 25. Rdc1 {[%emt 0:01:39]} Rxc3 {[%emt 0:00:22]} 26. Rxc3 {[%emt 0:00:35]} Rc8 {[%emt 0:00:26]} 27. Rxc8+ {[%emt 0:04:08]} Qxc8 {[%emt 0:00:01]} 28. Qd3 {[%emt 0:00:41]} Bf8 {[%emt 0:00:54]} 29. h4 {[%emt 0:00:57]} Bg7 {[%emt 0:01:17]} 30. Qe3 {[%emt 0:03:14]} Nxe5 {[%emt 0:01:48]} 31. Bxe5 {[%emt 0:01:55]} Bxe5 {[%emt 0:00:09]} 32. Qxe5 {[%emt 0:00:07]} Qc1+ {[%emt 0:00:07]} 33. Kh2 {[%emt 0:00:12]} Qxb1 {[%emt 0:00:08]} 34. Qb8+ {[%emt 0:00:29]} Kg7 {[%emt 0:00:57]} 35. Qe5+ {[%emt 0:01:06]} Kg8 {[%emt 0:00:13]} 36. Qb8+ {[%emt 0:01:43] normal} Kg7 {[%emt 0:00:53] normal} 1/2-1/2

[Event "DVM U14 2019"]
[Site "Magedburg"]
[Date "2019.12.29"]
[Round "6"]
[White "Gerber, Anna Sophie"]
[Black "Kazimov, Alis"]
[Result "1-0"]
[ECO "E64"]
[WhiteElo "1513"]
[BlackElo "1362"]
[Annotator "NA"]
[PlyCount "63"]
[EventDate "2019.12.27"]
[EventType "team-tourn"]
[EventRounds "7"]
[EventCountry "GER"]
[SourceTitle "playchess.com"]
[Source "ChessBase"]
[SourceQuality "1"]
[WhiteTeam "ESV Gera"]
[BlackTeam "SG Porz"]
[WhiteTeamCountry "GER"]
[BlackTeamCountry "GER"]
[TimeControl "40/5400+30:1800+30"]

1. d4 {[%emt 0:00:00]} Nf6 {[%emt 0:00:00]} 2. Nf3 {[%emt 0:00:00]} g6 {[%emt 0:00:03]} 3. c4 {[%emt 0:00:04]} Bg7 {[%emt 0:00:06]} 4. Nc3 {[%emt 0:00:32]} d6 {[%emt 0:00:11]} 5. g3 {[%emt 0:00:29]} O-O {[%emt 0:00:07]} 6. Bg2 {[%emt 0:00:22]} c5 {[%emt 0:02:25]} 7. e4 {[%emt 0:06:40]} Bg4 {[%emt 0:15:24]} 8. Be3 {[%emt 0:05:18]} Nbd7 {[%emt 0:03:34]} 9. h3 {[%emt 0:02:24]} Bxf3 {[%emt 0:00:15]} 10. Bxf3 {[%emt 0:00:29]} Qc7 {[%emt 0:03:33]} 11. b3 {[%emt 0:03:07]} Rab8 {[%emt 0:06:06]} 12. Qd2 {[%emt 0:03:33]} cxd4 {[%emt 0:04:36]} 13. Bxd4 {[%emt 0:00:54]} a6 {[%emt 0:00:50]} 14. a4 {[%emt 0:03:41]} Rfe8 {[%emt 0:10:35]} 15. O-O {[%emt 0:02:59]} Rbc8 {[%emt 0:09:09]} 16. Rab1 {[%emt 0:05:33]} Red8 {[%emt 0:06:13]} 17. Rfe1 {[%emt 0:06:11]} Ne5 {[%emt 0:02:37]} 18. Bg2 {[%emt 0:02:45]} Nc6 {[%emt 0:00:51]} 19. Be3 {[%emt 0:01:01]} e5 {[%emt 0:07:11]} 20. Red1 {[%emt 0:03:22]} Ne7 {[%emt 0:07:21]} 21. Bg5 {[%emt 0:06:03]} Ne8 {[%emt 0:04:59]} 22. Nd5 {[%emt 0:02:56]} Nxd5 {[%emt 0:01:11]} 23. Bxd8 {[%emt 0:03:03]} Rxd8 {[%emt 0:00:59]} 24. cxd5 {[%emt 0:08:46]} Qd7 {[%emt 0:00:40]} 25. Rdc1 {[%emt 0:01:35]} f5 {[%emt 0:00:30]} 26. f3 {[%emt 0:00:40]} Nf6 {[%emt 0:01:51]} 27. Kh2 {[%emt 0:00:53]} h6 {[%emt 0:03:38]} 28. Qd3 {[%emt 0:01:09]} Nh5 {[%emt 0:02:42]} 29. Rc2 {[%emt 0:01:49]} Qf7 {[%emt 0:05:51]} 30. Rbc1 {[%emt 0:01:12]} Nxg3 {[%emt 0:00:42]} 31. Kxg3 {[%emt 0:00:57]} fxe4 {[%emt 0:00:19]} 32. Qxe4 {[%emt 0:00:13] normal} 1-0

[Event "DVM U14 2019"]
[Site "Magedburg"]
[Date "2019.12.29"]
[Round "6"]
[White "Kling, Simon"]
[Black "Blome, Johannes"]
[Result "1/2-1/2"]
[ECO "B20"]
[WhiteElo "1136"]
[BlackElo "1877"]
[Annotator "NA"]
[PlyCount "53"]
[EventDate "2019.12.27"]
[EventType "team-tourn"]
[EventRounds "7"]
[EventCountry "GER"]
[SourceTitle "playchess.com"]
[Source "ChessBase"]
[SourceQuality "1"]
[WhiteTeam "SC Untergrombach"]
[BlackTeam "Hamburger SK"]
[BlackTeamCountry "GER"]
[TimeControl "40/5400+30:1800+30"]

1. e4 {[%emt 0:00:00]} c5 {[%emt 0:00:00]} 2. b4 {[%emt 0:00:00]} cxb4 {[%emt 0:00:31]} 3. a3 {[%emt 0:00:00]} e6 {[%emt 0:01:34]} 4. d4 {[%emt 0:00:27]} d5 {[%emt 0:01:00]} 5. e5 {[%emt 0:00:32]} Nc6 {[%emt 0:00:34]} 6. Nf3 {[%emt 0:00:48]} Bd7 {[%emt 0:05:41]} 7. axb4 {[%emt 0:01:32]} Bxb4+ {[%emt 0:02:47]} 8. c3 {[%emt 0:00:34]} Be7 {[%emt 0:01:51]} 9. Bd3 {[%emt 0:01:21]} a6 {[%emt 0:06:43]} 10. Nbd2 {[%emt 0:08:28]} b5 {[%emt 0:05:33]} 11. Bb2 {[%emt 0:05:41]} Na5 {[%emt 0:03:28]} 12. O-O {[%emt 0:04:39]} Nh6 {[%emt 0:01:20]} 13. Qc2 {[%emt 0:03:06]} Nc4 {[%emt 0:02:43]} 14. Bc1 {[%emt 0:07:19]} Nf5 {[%emt 0:06:54]} 15. Re1 {[%emt 0:04:51]} g6 {[%emt 0:00:42]} 16. Nf1 {[%emt 0:03:09]} a5 {[%emt 0:01:37]} 17. Ng3 {[%emt 0:06:50]} h6 {[%emt 0:08:08]} 18. Kh1 {[%emt 0:07:15]} a4 {[%emt 0:01:10]} 19. Ne2 {[%emt 0:04:55]} Na5 {[%emt 0:05:28]} 20. g4 {[%emt 0:07:50]} Nb3 {[%emt 0:01:47]} 21. Rb1 {[%emt 0:02:52]} Ng7 {[%emt 0:00:52]} 22. Be3 {[%emt 0:01:25]} g5 {[%emt 0:07:57]} 23. Rf1 {[%emt 0:02:39]} Rc8 {[%emt 0:07:07]} 24. Nd2 {[%emt 0:02:48]} Nxd2 {[%emt 0:01:26]} 25. Qxd2 {[%emt 0:00:36]} Qa5 {[%emt 0:03:15]} 26. f4 {[%emt 0:01:48] normal} gxf4 {[%emt 0:01:32]} 27. Qd1 {normal} 1/2-1/2

[Event "DVM U14 2019"]
[Site "Magedburg"]
[Date "2019.12.30"]
[Round "7"]
[White "Hommer, Jeremy"]
[Black "Weihrauch, Jakob"]
[Result "1/2-1/2"]
[ECO "C54"]
[WhiteElo "2104"]
[BlackElo "2169"]
[Annotator "ChessBase"]
[PlyCount "42"]
[EventDate "2019.12.27"]
[EventType "team-tourn"]
[EventRounds "7"]
[EventCountry "GER"]
[SourceTitle "playchess.com"]
[Source "ChessBase"]
[SourceQuality "1"]
[WhiteTeam "SC Turm Lüneburg"]
[BlackTeam "Hamburger SK"]
[BlackTeamCountry "GER"]
[TimeControl "40/5400+30:1800+30"]

1. e4 {[%emt 0:00:00]} e5 {[%emt 0:00:38]} 2. Nf3 {[%emt 0:00:00]} Nc6 {[%emt 0:00:10]} 3. Bc4 {[%emt 0:00:00]} Bc5 {[%emt 0:00:35]} 4. c3 {[%emt 0:00:00]} Nf6 {[%emt 0:00:10]} 5. d3 {[%emt 0:00:02]} d6 {[%emt 0:00:19]} 6. O-O {[%emt 0:01:07]} O-O {[%emt 0:00:24]} 7. Bb3 {[%emt 0:00:52]} a6 {[%emt 0:00:12]} 8. Nbd2 {[%emt 0:02:16]} Ba7 {[%emt 0:00:19]} 9. Re1 {[%emt 0:08:01]} Ng4 {[%emt 0:01:32]} 10. Re2 {[%emt 0:00:47]} Kh8 {[%emt 0:00:12]} 11. h3 {[%emt 0:02:57]} f5 {[%emt 0:00:29]} 12. Nf1 {[%emt 0:17:06]} fxe4 {[%emt 0:02:17]} 13. dxe4 {[%emt 0:03:39]} Nf6 {[%emt 0:20:33]} 14. Ng3 {[%emt 0:17:16]} Qe8 {[%emt 0:03:41]} 15. Be3 {[%emt 0:05:13]} Nh5 {[%emt 0:04:01]} 16. Bxa7 {[%emt 0:07:41]} Nxa7 {[%emt 0:03:57]} 17. Nxh5 {[%emt 0:03:27]} Qxh5 {[%emt 0:00:31]} 18. Re3 {[%emt 0:00:23]} Nc6 {[%emt 0:02:22] normal} 19. Ne1 {[%emt 0:05:26] normal} Qxd1 {[%emt 0:02:13] normal} 20. Bxd1 {[%emt 0:02:40]} Be6 {[%emt 0:00:32] normal} 21. Bg4 {[%emt 0:02:16]} Rf6 {[%emt 0:00:21] normal} 1/2-1/2

[Event "DVM U14 2019"]
[Site "Magedburg"]
[Date "2019.12.30"]
[Round "7"]
[White "Garner, Isaac"]
[Black "Bildat, Emilia"]
[Result "1-0"]
[ECO "B38"]
[WhiteElo "2040"]
[BlackElo "1754"]
[Annotator "NA"]
[PlyCount "63"]
[EventDate "2019.12.27"]
[EventType "team-tourn"]
[EventRounds "7"]
[EventCountry "GER"]
[SourceTitle "playchess.com"]
[Source "ChessBase"]
[SourceQuality "1"]
[WhiteTeam "Hamburger SK"]
[BlackTeam "SC Turm Lüneburg"]
[WhiteTeamCountry "GER"]
[TimeControl "40/5400+30:1800+30"]

1. e4 {[%emt 0:00:00]} c5 {[%emt 0:00:00]} 2. Nf3 {[%emt 0:00:00]} g6 {[%emt 0:00:00]} 3. d4 {[%emt 0:00:00]} cxd4 {[%emt 0:00:13]} 4. Nxd4 {[%emt 0:00:02]} Bg7 {[%emt 0:00:20]} 5. c4 {[%emt 0:00:12]} Nc6 {[%emt 0:00:27]} 6. Be3 {[%emt 0:00:08]} Nf6 {[%emt 0:00:33]} 7. Nc3 {[%emt 0:00:07]} O-O {[%emt 0:00:30]} 8. Be2 {[%emt 0:00:08]} d6 {[%emt 0:00:32]} 9. f3 {[%emt 0:00:14]} Bd7 {[%emt 0:00:33]} 10. Qd2 {[%emt 0:00:09]} Nxd4 {[%emt 0:00:41]} 11. Bxd4 {[%emt 0:00:07]} Bc6 {[%emt 0:00:19] B38: Sicilian: Maroczy Bind with 5...Bg7 and 7...0-0} (11... a5 12. b3 Bc6 13. O-O Nd7 14. Be3 Nc5 15. Rab1 e6 16. a3 Be5 17. b4 axb4 18. axb4 Ra3 19. bxc5 Rxc3 20. f4 Bg7 21. e5 dxe5 22. Qxc3 exf4 23. Qd2 Qg5 {0-1 (43) Bu,X (2730)-Savchenko,B (2566) Riadh 2017}) 12. O-O-O {[%emt 0:00:48] unterminated} Nd7 $146 {[%emt 0:02:15] unterminated} ({Predecessor:} 12... Qa5 13. Kb1 Rfc8 14. g4 a6 15. h4 b5 16. h5 bxc4 17. hxg6 hxg6 18. Bxc4 Rab8 19. Bb3 {1-0 (27) Trigo Urquijo,S (2383)-Barbazan Bilbao,X (2094) Getxo 2019}) 13. h4 {[%emt 0:09:45] unterminated} Re8 {[%emt 0:16:15] unterminated} (13... Bxd4 $14 14. Qxd4 Qa5) 14. h5 {[%emt 0:05:39] unterminated} ({Better is} 14. Bxg7 $18 Kxg7 15. h5) 14... f6 {[%emt 0:05:38] unterminated} (14... Bxd4 $16 15. Qxd4 g5) 15. hxg6 {[%emt 0:13:16]} hxg6 {[%emt 0:00:11]} 16. Rh2 {[%emt 0:00:38] unterminated} Qc7 {[%emt 0:05:43] unterminated} 17. Rdh1 {[%emt 0:09:09] unterminated} Kf7 {[%emt 0:04:34] unterminated} 18. f4 {[%emt 0:03:43] unterminated} Rh8 {[%emt 0:08:17] unterminated} 19. f5 {[%emt 0:03:29] unterminated} ({White should try} 19. Nd5 $16 Rxh2 20. Rxh2 (20. Nxc7 Rxh1+ 21. Kc2 Bxe4+ 22. Bd3 Bxd3+ 23. Qxd3 Rc8 $17)) 19... g5 {[%emt 0:09:50] unterminated} (19... gxf5 $14 20. exf5 Ne5) 20. Bh5+ {[%emt 0:04:47] unterminated} Kg8 {[%emt 0:04:23] unterminated} 21. Qe2 {[%emt 0:02:33] unterminated} Nf8 $2 {[%emt 0:03:21] [#] unterminated} (21... Rc8 $16) 22. c5 $2 {[%emt 0:13:25] unterminated} (22. Bf7+ $1 $18 {[%mdl 512] and the rest is easy.} Kxf7 23. Rxh8 Bxh8 24. Qh5+ Kg8 25. Qxh8+ Kf7 {[#]} 26. Bxf6 $1 {[%mdl 512]}) 22... d5 {[%emt 0:04:20] unterminated} 23. exd5 {[%emt 0:01:46] unterminated} Be8 {[%emt 0:01:20] [#] unterminated} 24. d6 $1 {[%emt 0:04:36]} Bxh5 {[%emt 0:04:18]} 25. Qc4+ {[%emt 0:00:23]} Bf7 {[%emt 0:00:18]} 26. Rxh8+ {[%emt 0:00:18]} Bxh8 {[%emt 0:00:06] [#] unterminated} 27. Rxh8+ $1 {[%emt 0:02:28] unterminated} Kxh8 {[%emt 0:00:16]} 28. Qxf7 {[%emt 0:00:05] unterminated} Qc6 {[%emt 0:03:19] unterminated} 29. Qxe7 {[%emt 0:01:13] unterminated} Nd7 {[%emt 0:02:46] unterminated} 30. Bxf6+ {[%emt 0:01:02] Double Attack} Nxf6 {[%emt 0:00:09]} 31. Qxf6+ {[%emt 0:00:05] Double Attack unterminated} Kh7 {[%emt 0:01:23]} 32. Qf7+ {[%emt 0:00:45] normal} 1-0

[Event "DVM U14 2019"]
[Site "Magedburg"]
[Date "2019.12.30"]
[Round "7"]
[White "Morgenstern, Tobias"]
[Black "Beck, Felix"]
[Result "1/2-1/2"]
[ECO "B18"]
[WhiteElo "1943"]
[BlackElo "1508"]
[Annotator "NA"]
[PlyCount "62"]
[EventDate "2019.12.27"]
[EventType "team-tourn"]
[EventRounds "7"]
[EventCountry "GER"]
[SourceTitle "playchess.com"]
[Source "ChessBase"]
[SourceQuality "1"]
[WhiteTeam "Schachzwerge Magdeburg"]
[BlackTeam "SF Nordost Berlin"]
[WhiteTeamCountry "GER"]
[BlackTeamCountry "GER"]
[TimeControl "40/5400+30:1800+30"]

1. e4 {[%emt 0:00:00]} c6 {[%emt 0:00:00]} 2. d4 {[%emt 0:00:00]} d5 {[%emt 0:00:00]} 3. Nd2 {[%emt 0:00:00]} dxe4 {[%emt 0:00:13]} 4. Nxe4 {[%emt 0:00:02]} Bf5 {[%emt 0:00:28]} 5. Ng3 {[%emt 0:00:05]} Bg6 {[%emt 0:00:45]} 6. Nf3 {[%emt 0:00:13]} Nd7 {[%emt 0:01:38]} 7. Bc4 {[%emt 0:00:24] unterminated} e6 {[%emt 0:02:40] unterminated} 8. O-O {[%emt 0:00:21] unterminated} Ngf6 {[%emt 0:08:44] unterminated} 9. Nh4 {[%emt 0:01:02] B18: Classical Caro-Kann: 4...Bf5 sidelines} (9. Re1 Be7 10. c3 O-O 11. Nh4 Qc7 12. Bb3 Bd6 13. Qf3 c5 14. Nxg6 hxg6 15. dxc5 Nxc5 16. Bc2 b5 17. Bg5 Ncd7 18. Rad1 b4 19. Qd3 Bxg3 20. hxg3 bxc3 21. bxc3 Rac8 22. Bd2 Qa5 23. Bb3 {½-½ (23) Kovchan,A (2579)-Hera,I (2598) Hungary 2019}) 9... Be7 {[%emt 0:02:49] unterminated} 10. Nxg6 {[%emt 0:00:16]} hxg6 {[%emt 0:00:07]} 11. Re1 {[%emt 0:00:39] unterminated} Nd5 {[%emt 0:10:34] unterminated} 12. Ne4 {[%emt 0:06:40] unterminated} Qc7 {[%emt 0:13:26]} 13. g3 {[%emt 0:01:48] unterminated} N7f6 {[%emt 0:05:16] unterminated} 14. Qf3 {[%emt 0:08:08] unterminated} Nxe4 {[%emt 0:01:01] unterminated} 15. Rxe4 {[%emt 0:05:53] unterminated} Bf6 $146 {[%emt 0:04:20] unterminated} ({Predecessor:} 15... Qd7 16. c3 O-O 17. h4 b5 {½-½ (44) Nicolini,A (2166)-Sukuba,Z (2142) Slovakia 2018}) 16. Qb3 {[%emt 0:09:27] unterminated} Rd8 {[%emt 0:04:28] unterminated} 17. Bf1 {[%emt 0:10:28] unterminated} Qb6 {[%emt 0:05:02] unterminated} 18. Qxb6 {[%emt 0:06:56]} Nxb6 {[%emt 0:00:20]} 19. c3 {[%emt 0:00:06] unterminated} Be7 {[%emt 0:04:27] unterminated} 20. a4 {[%emt 0:05:15] unterminated} c5 {[%emt 0:02:51] unterminated} 21. Be3 {[%emt 0:08:49] unterminated} (21. dxc5 $16 Bxc5 22. Bg5) 21... Nd5 {[%emt 0:02:39] unterminated} 22. Bb5+ {[%emt 0:01:48]} Kf8 {[%emt 0:00:16] unterminated} 23. dxc5 {[%emt 0:01:08]} Nxe3 {[%emt 0:00:58] unterminated} 24. Rxe3 {[%emt 0:00:27]} Bxc5 {[%emt 0:00:07]} 25. Rd3 {[%emt 0:00:47] unterminated} Rxd3 $11 {[%emt 0:00:45]} 26. Bxd3 {[%emt 0:00:09]} Ke7 {[%emt 0:00:30]} 27. Be4 {[%emt 0:02:22]} b6 {[%emt 0:01:16]} 28. Rd1 {[%emt 0:01:41]} Rd8 {[%emt 0:01:01]} 29. Rxd8 {[%emt 0:00:56]} Kxd8 {[%emt 0:00:06]} 30. Kf1 {[%emt 0:00:06]} Ke7 {[%emt 0:00:21]} 31. Ke2 {[%emt 0:00:06]} a5 {[%emt 0:13:17] normal} 1/2-1/2